[Event "Late-Titled-Tuesday-Blitz-May-07-2024"]
[Site "Chess.com"]
[Date "2024.05.07"]
[Round "10"]
[White "OriTaichman"]
[Black "GMKrikor"]
[Result "0-1"]
[WhiteElo "2617"]
[BlackElo "2840"]
[TimeControl "180+1"]
[EndTime "15:58:17 PDT"]
[Termination "GMKrikor won by checkmate"]

1. e4 {[%clk 0:02:36.6]} 1... c5 {[%clk 0:02:59.6]} 2. Nc3 {[%clk 0:02:35.5]}
2... Nc6 {[%clk 0:02:55.8]} 3. Bb5 {[%clk 0:02:35.9]} 3... Nf6 {[%clk
0:02:55.4]} 4. Nf3 {[%clk 0:02:26.9]} 4... Qc7 {[%clk 0:02:53.6]} 5. O-O {[%clk
0:02:23.7]} 5... Nd4 {[%clk 0:02:53.2]} 6. Re1 {[%clk 0:02:16.1]} 6... a6 {[%clk
0:02:53.2]} 7. Bf1 {[%clk 0:02:13.4]} 7... Ng4 {[%clk 0:02:53.4]} 8. e5 {[%clk
0:02:12.1]} 8... Nxf3+ {[%clk 0:02:53.6]} 9. Qxf3 {[%clk 0:02:11.8]} 9... Nxe5
{[%clk 0:02:54.4]} 10. Qg3 {[%clk 0:02:12.1]} 10... d6 {[%clk 0:02:48]} 11. f4
{[%clk 0:02:08.6]} 11... Nc6 {[%clk 0:02:23.6]} 12. Nd5 {[%clk 0:02:08.2]} 12...
Qd8 {[%clk 0:02:19.6]} 13. b4 {[%clk 0:01:53]} 13... e6 {[%clk 0:01:46.6]} 14.
Bb2 {[%clk 0:01:51.9]} 14... f6 {[%clk 0:01:45.3]} 15. f5 {[%clk 0:01:27]} 15...
e5 {[%clk 0:01:40.8]} 16. Qg4 {[%clk 0:01:21.1]} 16... Qd7 {[%clk 0:01:00.4]}
17. Nb6 {[%clk 0:00:55.6]} 17... Qxf5 {[%clk 0:01:00.4]} 18. Qxf5 {[%clk
0:00:54.3]} 18... Bxf5 {[%clk 0:01:01.3]} 19. Nxa8 {[%clk 0:00:54.5]} 19... Nxb4
{[%clk 0:01:01.9]} 20. Re2 {[%clk 0:00:18.9]} 20... Nxc2 {[%clk 0:01:00]} 21.
Rc1 {[%clk 0:00:16.6]} 21... Kd7 {[%clk 0:00:41.3]} 22. Nb6+ {[%clk 0:00:15.6]}
22... Kc6 {[%clk 0:00:41.2]} 23. Nc4 {[%clk 0:00:12.8]} 23... Nb4 {[%clk
0:00:41.9]} 24. Ne3 {[%clk 0:00:12.2]} 24... Be6 {[%clk 0:00:38.6]} 25. a3
{[%clk 0:00:11.5]} 25... Nd3 {[%clk 0:00:38.9]} 26. Rb1 {[%clk 0:00:10.4]} 26...
d5 {[%clk 0:00:36.1]} 27. g3 {[%clk 0:00:08.4]} 27... c4 {[%clk 0:00:36.4]} 28.
Bg2 {[%clk 0:00:07.8]} 28... b5 {[%clk 0:00:29.9]} 29. a4 {[%clk 0:00:07.6]}
29... Bc5 {[%clk 0:00:29.7]} 30. axb5+ {[%clk 0:00:07.6]} 30... axb5 {[%clk
0:00:30.6]} 31. Kh1 {[%clk 0:00:08.1]} 31... Ra8 {[%clk 0:00:28]} 32. Ra1 {[%clk
0:00:07.2]} 32... Rxa1+ {[%clk 0:00:26.3]} 33. Bxa1 {[%clk 0:00:08.1]} 33... e4
{[%clk 0:00:24]} 34. Nc2 {[%clk 0:00:07.6]} 34... Bg4 {[%clk 0:00:21]} 35. Re3
{[%clk 0:00:05.5]} 35... Bxe3 {[%clk 0:00:19.8]} 36. Nxe3 {[%clk 0:00:04.6]}
36... Be6 {[%clk 0:00:15.4]} 37. Bf1 {[%clk 0:00:04.3]} 37... Kc5 {[%clk
0:00:12.6]} 38. Bxd3 {[%clk 0:00:03.9]} 38... exd3 {[%clk 0:00:11.8]} 39. Kg2
{[%clk 0:00:03.7]} 39... d4 {[%clk 0:00:12.3]} 40. Nd1 {[%clk 0:00:03.6]} 40...
b4 {[%clk 0:00:11.3]} 41. Kf2 {[%clk 0:00:03.5]} 41... Bg4 {[%clk 0:00:11.1]}
42. Nb2 {[%clk 0:00:03]} 42... Be2 {[%clk 0:00:10.6]} 43. Na4+ {[%clk
0:00:02.5]} 43... Kb5 {[%clk 0:00:11.1]} 44. Nc3+ {[%clk 0:00:02.4]} 44... dxc3
{[%clk 0:00:11.1]} 45. dxc3 {[%clk 0:00:03]} 45... Bg4 {[%clk 0:00:05.3]} 46.
Ke3 {[%clk 0:00:02.7]} 46... Ka4 {[%clk 0:00:02.8]} 47. Kd2 {[%clk 0:00:02.2]}
47... b3 {[%clk 0:00:02.4]} 48. Bb2 {[%clk 0:00:02.1]} 48... Kb5 {[%clk
0:00:03]} 49. Ke3 {[%clk 0:00:02.5]} 49... Kc6 {[%clk 0:00:02.7]} 50. Kd2 {[%clk
0:00:02.7]} 50... Be2 {[%clk 0:00:03]} 51. Ke3 {[%clk 0:00:03.1]} 51... Kd5
{[%clk 0:00:03.9]} 52. Bc1 {[%clk 0:00:03.3]} 52... Ke5 {[%clk 0:00:03.9]} 53.
Bb2 {[%clk 0:00:03.8]} 53... Kf5 {[%clk 0:00:04.4]} 54. Ba3 {[%clk 0:00:04.1]}
54... Kg4 {[%clk 0:00:04.5]} 55. Kf2 {[%clk 0:00:04.1]} 55... Bf3 {[%clk
0:00:04.2]} 56. Ke3 {[%clk 0:00:02.8]} 56... Bd1 {[%clk 0:00:02.2]} 57. Kd2
{[%clk 0:00:02.9]} 57... Bc2 {[%clk 0:00:02.4]} 58. Ke3 {[%clk 0:00:02.5]} 58...
Kh3 {[%clk 0:00:03.1]} 59. Kf2 {[%clk 0:00:00.4]} 59... Kxh2 {[%clk 0:00:02.9]}
60. Bc1 {[%clk 0:00:01.3]} 60... d2 {[%clk 0:00:02.2]} 61. Bxd2 {[%clk
0:00:01.6]} 61... b2 {[%clk 0:00:02.8]} 62. Bf4 {[%clk 0:00:02.5]} 62... b1=Q
{[%clk 0:00:03.7]} 63. g4+ {[%clk 0:00:03.4]} 63... Kh3 {[%clk 0:00:04.2]} 64.
Kf3 {[%clk 0:00:03.6]} 64... Bd3 {[%clk 0:00:04.8]} 65. Ke3 {[%clk 0:00:03.9]}
65... Qd1 {[%clk 0:00:05.1]} 66. Kd4 {[%clk 0:00:04.5]} 66... Qe2 {[%clk
0:00:06]} 67. Kc5 {[%clk 0:00:05]} 67... Qe4 {[%clk 0:00:06.9]} 68. Bd6 {[%clk
0:00:05.5]} 68... Qxg4 {[%clk 0:00:07]} 69. Be7 {[%clk 0:00:05.8]} 69... Qe6
{[%clk 0:00:07]} 70. Bf8 {[%clk 0:00:05.8]} 70... g5 {[%clk 0:00:07.1]} 71. Bg7
{[%clk 0:00:06.2]} 71... Kg4 {[%clk 0:00:07.5]} 72. Kd4 {[%clk 0:00:06.9]} 72...
Kf5 {[%clk 0:00:07.8]} 73. Bxf6 {[%clk 0:00:07.3]} 73... Qe4+ {[%clk 0:00:07.2]}
74. Kc5 {[%clk 0:00:07.7]} 74... Ke6 {[%clk 0:00:07]} 75. Kb4 {[%clk 0:00:08.3]}
75... Qc6 {[%clk 0:00:04.9]} 76. Bd4 {[%clk 0:00:09.2]} 76... Kd5 {[%clk
0:00:04.9]} 77. Be3 {[%clk 0:00:09.8]} 77... Bc2 {[%clk 0:00:04.5]} 78. Bd4
{[%clk 0:00:10]} 78... Ba4 {[%clk 0:00:04.8]} 79. Be3 {[%clk 0:00:09.8]} 79...
Qb5+ {[%clk 0:00:05.4]} 80. Ka3 {[%clk 0:00:09.9]} 80... Qb3# {[%clk 0:00:06.3]}
0-1

[Event "Late-Titled-Tuesday-Blitz-May-07-2024"]
[Site "Chess.com"]
[Date "2024.05.07"]
[Round "10"]
[White "emeli_chess"]
[Black "vladgoncharov"]
[Result "1/2-1/2"]
[WhiteElo "2453"]
[BlackElo "2578"]
[TimeControl "180+1"]
[EndTime "15:58:23 PDT"]
[Termination "Game drawn - insufficient material"]

1. d4 {[%clk 0:02:59.4]} 1... Nf6 {[%clk 0:02:59.6]} 2. c4 {[%clk 0:02:59.3]}
2... e6 {[%clk 0:02:59.8]} 3. Nc3 {[%clk 0:02:59.6]} 3... Bb4 {[%clk 0:02:59.8]}
4. Qc2 {[%clk 0:02:59.9]} 4... O-O {[%clk 0:02:58.3]} 5. a3 {[%clk 0:02:58.8]}
5... Bxc3+ {[%clk 0:02:55.7]} 6. Qxc3 {[%clk 0:02:59.1]} 6... Ne4 {[%clk
0:02:55.8]} 7. Qc2 {[%clk 0:02:57.7]} 7... d5 {[%clk 0:02:54.4]} 8. cxd5 {[%clk
0:02:40.7]} 8... exd5 {[%clk 0:02:53.5]} 9. Bf4 {[%clk 0:02:34.6]} 9... Nc6
{[%clk 0:02:53.1]} 10. e3 {[%clk 0:02:27.2]} 10... Bf5 {[%clk 0:02:50.6]} 11.
Bd3 {[%clk 0:02:24.4]} 11... Bg6 {[%clk 0:02:49.6]} 12. Nf3 {[%clk 0:02:20.9]}
12... Re8 {[%clk 0:02:48.4]} 13. O-O {[%clk 0:02:19.5]} 13... Qd7 {[%clk
0:02:43.2]} 14. Ne5 {[%clk 0:02:14.7]} 14... Nxe5 {[%clk 0:02:42.3]} 15. Bxe5
{[%clk 0:02:15]} 15... c6 {[%clk 0:02:33.5]} 16. f3 {[%clk 0:02:03.5]} 16... Nd6
{[%clk 0:02:32.2]} 17. Bxg6 {[%clk 0:01:59.7]} 17... hxg6 {[%clk 0:02:31.8]} 18.
Bxd6 {[%clk 0:01:59.3]} 18... Qxd6 {[%clk 0:02:31.8]} 19. Rae1 {[%clk
0:01:59.3]} 19... Re6 {[%clk 0:02:31.4]} 20. Qd3 {[%clk 0:01:55.4]} 20... Rae8
{[%clk 0:02:30.6]} 21. e4 {[%clk 0:01:52.6]} 21... dxe4 {[%clk 0:02:29.4]} 22.
Rxe4 {[%clk 0:01:47.9]} 22... Rd8 {[%clk 0:02:25.5]} 23. Rd1 {[%clk 0:01:42.7]}
23... f5 {[%clk 0:02:13.9]} 24. Rxe6 {[%clk 0:01:38]} 24... Qxe6 {[%clk
0:02:13.8]} 25. Qd2 {[%clk 0:01:25.1]} 25... Qd5 {[%clk 0:02:11.3]} 26. Qg5
{[%clk 0:01:10.8]} 26... Kf7 {[%clk 0:02:07.3]} 27. Kh1 {[%clk 0:01:02.2]} 27...
c5 {[%clk 0:02:03.9]} 28. Re1 {[%clk 0:01:00.6]} 28... Qxd4 {[%clk 0:01:59.2]}
29. Re7+ {[%clk 0:00:43.6]} 29... Kg8 {[%clk 0:01:58.8]} 30. h3 {[%clk
0:00:43.1]} 30... Qd1+ {[%clk 0:01:40.3]} 31. Kh2 {[%clk 0:00:42.6]} 31... Qd6+
{[%clk 0:01:39.7]} 32. Kh1 {[%clk 0:00:41.4]} 32... Rb8 {[%clk 0:01:36.1]} 33.
Qe3 {[%clk 0:00:29.6]} 33... Kh7 {[%clk 0:01:24.6]} 34. Re6 {[%clk 0:00:28]}
34... Qd5 {[%clk 0:01:17.1]} 35. Re5 {[%clk 0:00:27.3]} 35... Qd1+ {[%clk
0:01:16.8]} 36. Kh2 {[%clk 0:00:26.8]} 36... b6 {[%clk 0:01:16.5]} 37. Re7
{[%clk 0:00:23.5]} 37... Qd6+ {[%clk 0:01:15.3]} 38. Kh1 {[%clk 0:00:23.3]}
38... a5 {[%clk 0:01:13.6]} 39. Re6 {[%clk 0:00:21.2]} 39... Qd5 {[%clk
0:01:12.2]} 40. Re7 {[%clk 0:00:17.3]} 40... Qd1+ {[%clk 0:01:11.8]} 41. Kh2
{[%clk 0:00:16.9]} 41... Qd6+ {[%clk 0:01:11.7]} 42. Kh1 {[%clk 0:00:17]} 42...
Rd8 {[%clk 0:01:10.1]} 43. Rb7 {[%clk 0:00:12.9]} 43... Qd4 {[%clk 0:01:07.2]}
44. Qg5 {[%clk 0:00:09.6]} 44... c4 {[%clk 0:01:03.8]} 45. Qe7 {[%clk
0:00:06.6]} 45... Qd1+ {[%clk 0:00:55.1]} 46. Kh2 {[%clk 0:00:06.2]} 46... Qd6+
{[%clk 0:00:55.8]} 47. Qxd6 {[%clk 0:00:05.1]} 47... Rxd6 {[%clk 0:00:55.9]} 48.
Rc7 {[%clk 0:00:05.5]} 48... Rd2 {[%clk 0:00:55.9]} 49. Rxc4 {[%clk 0:00:05.1]}
49... Rxb2 {[%clk 0:00:56]} 50. a4 {[%clk 0:00:05.5]} 50... Rb4 {[%clk
0:00:55.6]} 51. Rc6 {[%clk 0:00:05.8]} 51... Rxa4 {[%clk 0:00:55.1]} 52. Rxb6
{[%clk 0:00:06.1]} 52... Rb4 {[%clk 0:00:54.2]} 53. Ra6 {[%clk 0:00:05.7]} 53...
a4 {[%clk 0:00:54.6]} 54. Ra7 {[%clk 0:00:05.1]} 54... Kh6 {[%clk 0:00:53.9]}
55. Kg3 {[%clk 0:00:04.6]} 55... Kg5 {[%clk 0:00:53.5]} 56. Rxg7 {[%clk
0:00:03.8]} 56... f4+ {[%clk 0:00:53.8]} 57. Kh2 {[%clk 0:00:03.6]} 57... a3
{[%clk 0:00:53.3]} 58. Ra7 {[%clk 0:00:03.2]} 58... Rb3 {[%clk 0:00:53.5]} 59.
Ra5+ {[%clk 0:00:03.4]} 59... Kf6 {[%clk 0:00:53.7]} 60. h4 {[%clk 0:00:03.5]}
60... Ke6 {[%clk 0:00:50.4]} 61. h5 {[%clk 0:00:03.2]} 61... gxh5 {[%clk
0:00:49.8]} 62. Rxh5 {[%clk 0:00:03.2]} 62... Rb2 {[%clk 0:00:37.8]} 63. Ra5
{[%clk 0:00:02.8]} 63... a2 {[%clk 0:00:38]} 64. Kh3 {[%clk 0:00:03.1]} 64...
Kd6 {[%clk 0:00:37.7]} 65. Kg4 {[%clk 0:00:03.4]} 65... Rxg2+ {[%clk 0:00:37.1]}
66. Kxf4 {[%clk 0:00:03.7]} 66... Ke6 {[%clk 0:00:36.5]} 67. Ra6+ {[%clk
0:00:03.4]} 67... Kd5 {[%clk 0:00:36.7]} 68. Kf5 {[%clk 0:00:03.8]} 68... Kc5
{[%clk 0:00:29.7]} 69. f4 {[%clk 0:00:04]} 69... Kb4 {[%clk 0:00:26.2]} 70. Ra8
{[%clk 0:00:03.8]} 70... Rc2 {[%clk 0:00:23.4]} 71. Kf6 {[%clk 0:00:03]} 71...
Rc6+ {[%clk 0:00:23.4]} 72. Kf7 {[%clk 0:00:02.7]} 72... Rc7+ {[%clk 0:00:21]}
73. Kf6 {[%clk 0:00:02.8]} 73... Rc6+ {[%clk 0:00:20]} 74. Kf7 {[%clk
0:00:03.1]} 74... Kb3 {[%clk 0:00:20.4]} 75. f5 {[%clk 0:00:02.8]} 75... Rc4
{[%clk 0:00:21.1]} 76. Rxa2 {[%clk 0:00:02]} 76... Kxa2 {[%clk 0:00:20.8]} 77.
f6 {[%clk 0:00:02.5]} 77... Kb3 {[%clk 0:00:20.3]} 78. Ke7 {[%clk 0:00:02.5]}
78... Re4+ {[%clk 0:00:19.7]} 79. Kd7 {[%clk 0:00:01.9]} 79... Kc4 {[%clk
0:00:20.3]} 80. f7 {[%clk 0:00:01.4]} 80... Rf4 {[%clk 0:00:21.2]} 81. Ke7
{[%clk 0:00:01.8]} 81... Rxf7+ {[%clk 0:00:22.1]} 82. Kxf7 {[%clk 0:00:02.1]}
1/2-1/2

[Event "Late-Titled-Tuesday-Blitz-May-07-2024"]
[Site "Chess.com"]
[Date "2024.05.07"]
[Round "10"]
[White "GlavkonVVS"]
[Black "Balla_Tamas"]
[Result "1/2-1/2"]
[WhiteElo "2654"]
[BlackElo "2526"]
[TimeControl "180+1"]
[EndTime "15:58:27 PDT"]
[Termination "Game drawn - insufficient material"]

1. c4 {[%clk 0:03:00.9]} 1... c5 {[%clk 0:02:58.3]} 2. Nc3 {[%clk 0:03:00.2]}
2... Nc6 {[%clk 0:02:58.4]} 3. g3 {[%clk 0:02:59.7]} 3... g6 {[%clk 0:02:55.5]}
4. Bg2 {[%clk 0:02:59.7]} 4... Bg7 {[%clk 0:02:56]} 5. Nf3 {[%clk 0:02:59.7]}
5... e6 {[%clk 0:02:56.1]} 6. O-O {[%clk 0:02:59.9]} 6... Nge7 {[%clk
0:02:55.7]} 7. d3 {[%clk 0:03:00.4]} 7... O-O {[%clk 0:02:55.4]} 8. a3 {[%clk
0:03:00.2]} 8... d6 {[%clk 0:02:54.9]} 9. Bg5 {[%clk 0:03:00.2]} 9... h6 {[%clk
0:02:46.6]} 10. Bd2 {[%clk 0:03:00.1]} 10... Kh7 {[%clk 0:02:45.8]} 11. Rb1
{[%clk 0:02:59.2]} 11... b6 {[%clk 0:02:45.1]} 12. b4 {[%clk 0:02:58.7]} 12...
cxb4 {[%clk 0:02:42.1]} 13. axb4 {[%clk 0:02:58.4]} 13... Bb7 {[%clk 0:02:42.6]}
14. b5 {[%clk 0:02:57.9]} 14... Na5 {[%clk 0:02:40.6]} 15. h4 {[%clk 0:02:42.2]}
15... Rc8 {[%clk 0:02:38.4]} 16. h5 {[%clk 0:02:38.6]} 16... d5 {[%clk
0:02:37.8]} 17. hxg6+ {[%clk 0:02:38.1]} 17... fxg6 {[%clk 0:02:36.8]} 18. cxd5
{[%clk 0:02:29]} 18... Bxc3 {[%clk 0:02:33.2]} 19. dxe6 {[%clk 0:02:19.1]} 19...
Bg7 {[%clk 0:02:23.6]} 20. Qa4 {[%clk 0:02:06.6]} 20... Nf5 {[%clk 0:01:37.1]}
21. Rfc1 {[%clk 0:01:41.8]} 21... Bxf3 {[%clk 0:01:22.6]} 22. Rxc8 {[%clk
0:01:27.9]} 22... Qxc8 {[%clk 0:01:22.5]} 23. exf3 {[%clk 0:01:26.3]} 23... Qxe6
{[%clk 0:01:05.2]} 24. f4 {[%clk 0:01:24.6]} 24... Bd4 {[%clk 0:00:57.2]} 25.
Re1 {[%clk 0:01:15.8]} 25... Qb3 {[%clk 0:00:41.5]} 26. Qxb3 {[%clk 0:01:10.4]}
26... Nxb3 {[%clk 0:00:42.4]} 27. Bb4 {[%clk 0:01:10.9]} 27... Rd8 {[%clk
0:00:34.7]} 28. Kf1 {[%clk 0:01:07.3]} 28... Nc5 {[%clk 0:00:34]} 29. g4 {[%clk
0:01:00.6]} 29... Nxd3 {[%clk 0:00:32.8]} 30. gxf5 {[%clk 0:00:57.9]} 30... gxf5
{[%clk 0:00:10.7]} 31. Re7+ {[%clk 0:00:56.8]} 31... Kg6 {[%clk 0:00:10.6]} 32.
Bd2 {[%clk 0:00:51.2]} 32... Bc5 {[%clk 0:00:10.9]} 33. Rxa7 {[%clk 0:00:50.9]}
33... Nxf2 {[%clk 0:00:11.3]} 34. Be1 {[%clk 0:00:50.4]} 34... Ng4 {[%clk
0:00:10.7]} 35. Bh3 {[%clk 0:00:46]} 35... Ne3+ {[%clk 0:00:10.1]} 36. Ke2
{[%clk 0:00:46.1]} 36... Re8 {[%clk 0:00:10]} 37. Kf3 {[%clk 0:00:45.7]} 37...
Nd1 {[%clk 0:00:08.9]} 38. Bd2 {[%clk 0:00:44.8]} 38... Rd8 {[%clk 0:00:08.8]}
39. Be1 {[%clk 0:00:41.9]} 39... Nb2 {[%clk 0:00:06.8]} 40. Rc7 {[%clk
0:00:40.3]} 40... Rd3+ {[%clk 0:00:06.8]} 41. Kg2 {[%clk 0:00:39.7]} 41... Nd1
{[%clk 0:00:07.3]} 42. Rc6+ {[%clk 0:00:38.7]} 42... Kg7 {[%clk 0:00:07.6]} 43.
Bh4 {[%clk 0:00:36.3]} 43... Ne3+ {[%clk 0:00:07.9]} 44. Kh1 {[%clk 0:00:35.4]}
44... Ng4 {[%clk 0:00:07.1]} 45. Kg2 {[%clk 0:00:34.3]} 45... Rd2+ {[%clk
0:00:07]} 46. Kf3 {[%clk 0:00:33.6]} 46... Nh2+ {[%clk 0:00:06]} 47. Kg3 {[%clk
0:00:33.7]} 47... Bf2+ {[%clk 0:00:05.8]} 48. Kxh2 {[%clk 0:00:33.8]} 48...
Bxh4+ {[%clk 0:00:06.2]} 49. Kh1 {[%clk 0:00:34.4]} 49... Bf2 {[%clk 0:00:06.5]}
50. Bxf5 {[%clk 0:00:34.5]} 50... Bc5 {[%clk 0:00:06.9]} 51. Rg6+ {[%clk
0:00:34.2]} 51... Kf7 {[%clk 0:00:06.2]} 52. Rxh6 {[%clk 0:00:34]} 52... Rf2
{[%clk 0:00:06.7]} 53. Rh4 {[%clk 0:00:34.1]} 53... Kf6 {[%clk 0:00:06.8]} 54.
Bh3 {[%clk 0:00:33.6]} 54... Rb2 {[%clk 0:00:06.4]} 55. f5 {[%clk 0:00:33.5]}
55... Rxb5 {[%clk 0:00:06.5]} 56. Rh6+ {[%clk 0:00:33.4]} 56... Kg5 {[%clk
0:00:07]} 57. Rg6+ {[%clk 0:00:33.7]} 57... Kh4 {[%clk 0:00:07.4]} 58. Bf1
{[%clk 0:00:33.9]} 58... Rb1 {[%clk 0:00:07.5]} 59. Kg2 {[%clk 0:00:34.3]} 59...
Rb2+ {[%clk 0:00:08]} 60. Kh1 {[%clk 0:00:34.6]} 60... Rf2 {[%clk 0:00:08.5]}
61. Bd3 {[%clk 0:00:33.5]} 61... Rf3 {[%clk 0:00:08.6]} 62. Be2 {[%clk
0:00:32.6]} 62... Rf2 {[%clk 0:00:08.9]} 63. Rg2 {[%clk 0:00:31.2]} 63... Rxf5
{[%clk 0:00:08.4]} 64. Rh2+ {[%clk 0:00:31.5]} 64... Kg3 {[%clk 0:00:08.2]} 65.
Rg2+ {[%clk 0:00:31.9]} 65... Kf4 {[%clk 0:00:08.8]} 66. Rg4+ {[%clk 0:00:31.1]}
66... Ke3 {[%clk 0:00:09.1]} 67. Bb5 {[%clk 0:00:31.3]} 67... Rh5+ {[%clk
0:00:08.7]} 68. Kg2 {[%clk 0:00:31.5]} 68... Rf5 {[%clk 0:00:08.5]} 69. Rg3+
{[%clk 0:00:31.1]} 69... Ke4 {[%clk 0:00:08.4]} 70. Rg4+ {[%clk 0:00:31.4]}
70... Ke3 {[%clk 0:00:08.6]} 71. Rg3+ {[%clk 0:00:31.1]} 71... Kd2 {[%clk
0:00:09.2]} 72. Rd3+ {[%clk 0:00:30.6]} 72... Kc2 {[%clk 0:00:09.8]} 73. Rf3
{[%clk 0:00:30.9]} 73... Re5 {[%clk 0:00:09.2]} 74. Bd3+ {[%clk 0:00:29.8]}
74... Kc3 {[%clk 0:00:09.1]} 75. Bf1+ {[%clk 0:00:28.8]} 75... Kd2 {[%clk
0:00:09.6]} 76. Rd3+ {[%clk 0:00:28.8]} 76... Kc2 {[%clk 0:00:09.4]} 77. Rf3
{[%clk 0:00:28.4]} 77... Rg5+ {[%clk 0:00:09.5]} 78. Rg3 {[%clk 0:00:26.5]}
78... Rd5 {[%clk 0:00:08.9]} 79. Bc4 {[%clk 0:00:25.4]} 79... Rd4 {[%clk
0:00:08.4]} 80. Bb5 {[%clk 0:00:25.2]} 80... Rb4 {[%clk 0:00:08.6]} 81. Bd7
{[%clk 0:00:23.7]} 81... Rb2 {[%clk 0:00:08.9]} 82. Kh3 {[%clk 0:00:22.2]} 82...
b5 {[%clk 0:00:09.2]} 83. Rg5 {[%clk 0:00:22.3]} 83... Bd4 {[%clk 0:00:03.9]}
84. Rxb5 {[%clk 0:00:21.9]} 84... Rxb5 {[%clk 0:00:04]} 85. Bxb5 {[%clk
0:00:22.5]} 1/2-1/2

[Event "Late-Titled-Tuesday-Blitz-May-07-2024"]
[Site "Chess.com"]
[Date "2024.05.07"]
[Round "11"]
[White "Kostukov_Alex"]
[Black "DonMicheleCorleone"]
[Result "0-1"]
[WhiteElo "2366"]
[BlackElo "2490"]
[TimeControl "180+1"]
[EndTime "16:02:52 PDT"]
[Termination "DonMicheleCorleone won by resignation"]

1. g3 {[%clk 0:02:57.2]} 1... d5 {[%clk 0:02:59.7]} 2. Bg2 {[%clk 0:02:57.2]}
2... Bg4 {[%clk 0:02:59]} 3. h3 {[%clk 0:02:56.7]} 3... Bh5 {[%clk 0:02:59.1]}
4. g4 {[%clk 0:02:57.6]} 4... Bg6 {[%clk 0:02:59.4]} 5. f4 {[%clk 0:02:58.5]}
5... e6 {[%clk 0:02:59]} 6. Nf3 {[%clk 0:02:58.6]} 6... h5 {[%clk 0:02:57.1]} 7.
g5 {[%clk 0:02:56.2]} 7... Nc6 {[%clk 0:02:54]} 8. O-O {[%clk 0:02:56.1]} 8...
Bd6 {[%clk 0:02:51]} 9. d3 {[%clk 0:02:54.6]} 9... Nge7 {[%clk 0:02:48.9]} 10.
Nc3 {[%clk 0:02:46.8]} 10... d4 {[%clk 0:02:40.7]} 11. Nb5 {[%clk 0:02:42.7]}
11... Nf5 {[%clk 0:02:40.3]} 12. Qe1 {[%clk 0:02:26.3]} 12... a6 {[%clk
0:02:34]} 13. Nxd6+ {[%clk 0:02:23.4]} 13... Qxd6 {[%clk 0:02:34.9]} 14. Nh4
{[%clk 0:02:07.2]} 14... O-O-O {[%clk 0:02:34.5]} 15. e4 {[%clk 0:02:00]} 15...
dxe3 {[%clk 0:02:34.2]} 16. Bxe3 {[%clk 0:01:45.5]} 16... Ncd4 {[%clk
0:02:34.3]} 17. Nxf5 {[%clk 0:01:40.4]} 17... Bxf5 {[%clk 0:02:33]} 18. Qc3
{[%clk 0:01:24.1]} 18... Ne2+ {[%clk 0:02:32.2]} 0-1

[Event "Late-Titled-Tuesday-Blitz-May-07-2024"]
[Site "Chess.com"]
[Date "2024.05.07"]
[Round "11"]
[White "Felix-Rose"]
[Black "FredddieCroderg"]
[Result "1-0"]
[WhiteElo "2231"]
[BlackElo "2371"]
[TimeControl "180+1"]
[EndTime "16:02:57 PDT"]
[Termination "Felix-Rose won by resignation"]

1. e4 {[%clk 0:03:00.4]} 1... e6 {[%clk 0:03:00.9]} 2. d4 {[%clk 0:03:00.4]}
2... c6 {[%clk 0:03:01.8]} 3. Nc3 {[%clk 0:03:00.7]} 3... d5 {[%clk 0:03:02.7]}
4. Nf3 {[%clk 0:03:00.6]} 4... dxe4 {[%clk 0:03:02.7]} 5. Nxe4 {[%clk
0:03:00.7]} 5... Nf6 {[%clk 0:03:03.6]} 6. Nxf6+ {[%clk 0:02:58.3]} 6... gxf6
{[%clk 0:03:04.5]} 7. g3 {[%clk 0:02:57.3]} 7... Bd6 {[%clk 0:03:04.8]} 8. Bg2
{[%clk 0:02:57.7]} 8... Qc7 {[%clk 0:03:04.2]} 9. O-O {[%clk 0:02:57.7]} 9...
Nd7 {[%clk 0:03:04.3]} 10. c4 {[%clk 0:02:57.8]} 10... Nf8 {[%clk 0:03:03.8]}
11. Re1 {[%clk 0:02:57.6]} 11... Ng6 {[%clk 0:03:01.3]} 12. d5 {[%clk
0:02:55.8]} 12... O-O {[%clk 0:02:58.7]} 13. Qd4 {[%clk 0:02:47]} 13... e5
{[%clk 0:02:56.8]} 14. Qd2 {[%clk 0:02:45.1]} 14... cxd5 {[%clk 0:02:51.1]} 15.
cxd5 {[%clk 0:02:44.3]} 15... Re8 {[%clk 0:02:45.3]} 16. h4 {[%clk 0:02:43.9]}
16... e4 {[%clk 0:02:42.1]} 17. h5 {[%clk 0:02:38.7]} 17... exf3 {[%clk
0:02:40.6]} 18. Rxe8+ {[%clk 0:02:38]} 18... Nf8 {[%clk 0:02:39.4]} 19. Bxf3
{[%clk 0:02:35.4]} 19... Bg4 {[%clk 0:02:37]} 20. Rxa8 {[%clk 0:02:31.7]} 20...
Bxf3 {[%clk 0:02:36.7]} 21. Qh6 {[%clk 0:02:31.1]} 21... Qc2 {[%clk 0:02:27.6]}
22. Bf4 {[%clk 0:02:28.5]} 22... Bc5 {[%clk 0:02:22]} 23. Rf1 {[%clk 0:02:21.2]}
23... Bxd5 {[%clk 0:02:16.4]} 24. Qxf6 {[%clk 0:02:12.1]} 24... Qe4 {[%clk
0:02:12.5]} 25. Qg5+ {[%clk 0:02:09.9]} 25... Kh8 {[%clk 0:02:09.3]} 26. Qe5+
{[%clk 0:02:09]} 26... Kg8 {[%clk 0:02:05]} 27. Qg5+ {[%clk 0:02:06.2]} 27...
Kh8 {[%clk 0:02:04.5]} 28. Be5+ {[%clk 0:02:06.4]} 1-0

[Event "Late-Titled-Tuesday-Blitz-May-07-2024"]
[Site "Chess.com"]
[Date "2024.05.07"]
[Round "11"]
[White "super_emi_26"]
[Black "Denmark2015"]
[Result "1-0"]
[WhiteElo "2828"]
[BlackElo "2580"]
[TimeControl "180+1"]
[EndTime "16:03:15 PDT"]
[Termination "super_emi_26 won by resignation"]

1. e4 {[%clk 0:02:49.8]} 1... e6 {[%clk 0:02:59.9]} 2. Qe2 {[%clk 0:02:47.5]}
2... Be7 {[%clk 0:02:59.8]} 3. Nf3 {[%clk 0:02:47.2]} 3... d5 {[%clk 0:03:00.1]}
4. d3 {[%clk 0:02:47]} 4... Nf6 {[%clk 0:03:00.4]} 5. g3 {[%clk 0:02:46.2]} 5...
b6 {[%clk 0:03:00.9]} 6. Bg2 {[%clk 0:02:46.8]} 6... Bb7 {[%clk 0:03:01.4]} 7.
exd5 {[%clk 0:02:47.3]} 7... Nxd5 {[%clk 0:03:00.5]} 8. O-O {[%clk 0:02:47.4]}
8... c5 {[%clk 0:03:00.1]} 9. Ne5 {[%clk 0:02:46.6]} 9... Qc8 {[%clk 0:02:44.7]}
10. Re1 {[%clk 0:02:34.6]} 10... Nd7 {[%clk 0:02:40.6]} 11. Nxf7 {[%clk
0:02:33.1]} 11... O-O {[%clk 0:01:58]} 12. Qxe6 {[%clk 0:02:18]} 12... Rxf7
{[%clk 0:01:48.8]} 13. Bxd5 {[%clk 0:02:16.9]} 13... Bxd5 {[%clk 0:01:48.2]} 14.
Qxd5 {[%clk 0:02:17.8]} 14... Nf6 {[%clk 0:01:47.2]} 15. Qe6 {[%clk 0:02:14.5]}
15... Ng4 {[%clk 0:01:30.7]} 16. Qxc8+ {[%clk 0:02:13]} 16... Rxc8 {[%clk
0:01:30.3]} 17. Be3 {[%clk 0:02:05.9]} 17... Rcf8 {[%clk 0:01:25.4]} 18. Nc3
{[%clk 0:02:05.2]} 18... Nxf2 {[%clk 0:01:23.1]} 19. Bxf2 {[%clk 0:02:05.3]}
19... Rxf2 {[%clk 0:01:23.2]} 20. Rxe7 {[%clk 0:02:05.9]} 20... Rxc2 {[%clk
0:01:21.8]} 21. Rf1 {[%clk 0:02:01.5]} 1-0